Cogmind - Beta 14 @@@ ROGUE MODE // 2024.10.22 @ 22:35:10 Player: Woven Result: Destroyed by G-47 Trooper with Particle Gun Performance ------------- Evolutions (2) 1000 Regions Visited (3) 600 Robots Destroyed (43) 215 Value Destroyed (1340) 1340 Prototype IDs (2) 40 Alien Tech Used (0) 0 Bonus (0) 0 TOTAL SCORE: 3195 Bonus ------- None Cogmind --------- Core Integrity 0/550 Matter 239/300 Energy 100/100 System Corruption 0% Temperature Cool (9) Movement Walking (260) Ox2 Location -8/Materials Parts ------- > --- POWER (1) -------- (None) > --- PROPULSION (4) --- Aluminum Leg > --- UTILITY (3) ------ Improved Heat Sink Large Storage Unit > --- WEAPON (3) ------- (None) > --- INVENTORY (15) --- Large Storage Unit Structural Scanner Terrain Scan Processor Graphene Brace Great Maul Peak State ------------ > --- POWER ------------ Reinforced Deuterium Engine > --- PROPULSION ------- Aluminum Leg Aluminum Leg Aluminum Leg Aluminum Leg > --- UTILITY ---------- Improved Heat Sink Large Storage Unit Improved Utility Shielding > --- WEAPON ----------- Particle Gun Particle Gun Great Maul > --- INVENTORY -------- Backup Power I Armored Treads Aluminum Leg Aluminum Leg Aluminum Leg Large Storage Unit Structural Scanner Terrain Scan Processor Graphene Brace Particle Gun Light Assault Rifle Heavy Assault Cannon Shock Bomb Launcher [Rating: 25] Favorites ----------- Power Light Ion Engine Engine Light Ion Engine Power Core Light Nuclear Core Propulsion Aluminum Leg Treads Light Treads Leg Aluminum Leg Utility Sensor Array Device Sensor Array Storage Large Storage Unit Processor Signal Interpreter Protection Improved Utility Shielding Weapon Light Assault Rifle Energy Gun Particle Gun Energy Cannon Particle Cannon Ballistic Gun Light Assault Rifle Ballistic Cannon Heavy Assault Cannon Launcher Shock Bomb Launcher Impact Weapon Great Maul Build | -11 -10 -9 -8 ------- Run | Yrd Mat Mat Mat Slots Evolved 4 | . . 2 2 Power . | . . . . Propulsion 2 | . . 1 1 Utility 1 | . . 1 . Weapon 1 | . . . 1 Parts Attached 64 | 6 3 26 29 Power 12 | 1 1 4 6 Engine 9 | 1 1 3 4 Core 3 | . . 1 2 Reactor . | . . . . Propulsion 22 | 2 . 10 10 Treads 4 | . . 3 1 Leg 18 | 2 . 7 9 Wheel . | . . . . Hover . | . . . . Flight . | . . . . Utility 8 | 1 1 4 2 Device 4 | 1 1 1 1 Storage 1 | . . 1 . Processor 1 | . . 1 . Hackware . | . . . . Protection 2 | . . 1 1 Artifact . | . . . . Weapon 22 | 2 1 8 11 Energy Gun 8 | 1 . 2 5 Energy Cannon 3 | . . 3 . Ballistic Gun 8 | 1 1 3 3 Ballistic Cannon 1 | . . . 1 Launcher 1 | . . . 1 Special Weapon . | . . . . Impact Weapon 1 | . . . 1 Slashing Weapon . | . . . . Piercing Weapon . | . . . . Special Melee Weapon . | . . . . Unidentified Prototypes 2 | . . 1 1 Parts Lost 27 | . . 3 24 Power 5 | . . 1 4 Propulsion 9 | . . . 9 Utility 4 | . . 1 3 Weapon 9 | . . 1 8 Highest Loss Streak 17 | . . 2 17 To Critical Strikes . | . . . . Average Slot Usage (%) 92 | . 99 94 85 Engine 7 | . 14 6 3 Core 2 | . . 3 3 Treads 2 | . . 4 1 Leg 27 | . 28 27 28 Device 17 | . 27 17 11 Storage 3 | . . 2 9 Processor 3 | . . 8 . Protection 3 | . . 4 3 Energy Gun 10 | . 14 7 12 Energy Cannon 1 | . . 2 . Ballistic Gun 10 | . 14 9 10 Peak Build Rating 25 | 6 7 16 25 Average Rating 12 | 4 6 11 17 On Entrance 6 | . 6 7 13 Naked Turns . | . . . . Heaviest Build 48 | 7 8 33 48 Greatest Support 63 | 20 20 63 40 Greatest Overweight (x) 12 | . . 1 12 Average Overweight (x) . | . . . . Largest Inventory Capacity 15 | 5 5 15 15 Average Capacity 9 | 5 5 7 15 Most Carried 15 | 2 5 8 15 Average Carried 6 | . 4 5 9 Final Capacity 15 | 5 5 15 15 Final Carried 7 | 2 5 7 5 Class Distribution -------------------- 39% | Mutant 34% | Scavenger-Mutant 9% | Scavenger-Skirmisher 9% | Scavenger-Tank 5% | Scavenger-Gunner Dominant Class ---------------- Mutant | -10/Materials Scavenger-Mutant | -9/Materials Scavenger-Skirmisher | -8/Materials Resources | -11 -10 -9 -8 ----------- Run | Yrd Mat Mat Mat Matter Collected 1030 | 265 27 395 343 Remotely . | . . . . Salvage Created 1703 | 62 130 749 762 Parts 107 | 3 18 47 39 Haulers Intercepted . | . . . . Recyclers Shooed 1 | . . 1 . Parts Field Recycled . | . . . . Retrieved Matter . | . . . . Parts Self-Destructed . | . . . . Prevented . | . . . . Kills | -11 -10 -9 -8 ------- Run | Yrd Mat Mat Mat Combat Hostiles Destroyed 34 | 1 6 13 14 Guns 28 | 1 6 10 11 Cannons 6 | . . 3 3 Classes Destroyed 8 | 2 2 3 1 Worker 4 | . . 1 3 Tunneler 1 | 1 . . . Recycler 1 | . . 1 . Watcher 3 | . 2 1 . Swarmer 6 | . 6 . . Grunt 23 | 1 . 11 11 Sentry 4 | . . 2 2 Heavy 1 | . . . 1 Best Kill Streak 4 | 2 4 4 4 Combat Bots Only 4 | 1 3 3 4 Max Kills in Single Turn 2 | 1 2 1 1 Gunslinging . | . . . . Exploded . | . . . . Melee . | . . . . Uniques/NPCs Destroyed . | . . . . Combat | -11 -10 -9 -8 -------- Run | Yrd Mat Mat Mat Hostile Shots Fired 343 | 7 28 73 235 Missed 75 | 4 4 13 54 Damage Taken 4146 | 33 197 1005 2911 Core 994 | 11 30 388 565 Absorbed by Shields . | . . . . Redirected to Shielding 109 | . . . 109 Regen/Repaired (Parts) 179 | . . 91 88 Core Remaining (%) 60 | 95 83 3 . Volleys Fired 130 | 5 17 50 58 Largest 3 | 2 2 2 3 Hottest 195 | 70 70 91 195 Shots Fired 273 | 10 34 96 133 Gun 242 | 10 34 74 124 Cannon 31 | . . 22 9 Launcher . | . . . . Special . | . . . . Kinetic 135 | 5 17 50 63 Thermal 101 | 5 17 25 54 Explosive . | . . . . Electromagnetic 37 | . . 21 16 Robot Hit Streak 10 | 3 3 10 10 Robot Miss Streak 4 | 2 4 3 4 Penetration Max . | . . . . Secondary Targets 4 | . 1 . 3 Max Gunslinging Chain 1 | . 1 . 1 Shots Hit Robots 180 | 6 16 64 94 Core Hits 82 | 3 10 31 38 Critical Kills . | . . . . Critical Parts Destroyed 1 | . . . 1 Critical Strikes 2 | . . . 2 Destroy 1 | . . . 1 Blast 1 | . . . 1 Melee Attacks . | . . . . Impact . | . . . . Slashing . | . . . . Piercing . | . . . . Sneak Attacks . | . . . . Combat Hostiles . | . . . . Follow-up Attacks . | . . . . Damage Inflicted 3004 | 76 204 1013 1711 Guns 2184 | 76 204 692 1212 Cannons 661 | . . 310 351 Explosions 134 | . . . 134 Melee . | . . . . Ramming 25 | . . 11 14 Kinetic 1263 | 27 68 451 717 Thermal 1278 | 49 136 355 738 Explosive . | . . . . Electromagnetic 438 | . . 196 242 Impact . | . . . . Slashing . | . . . . Piercing . | . . . . Highest Corruption 2 | . 2 . . Average Corruption 2 | . 2 . . Corruption Purged . | . . . . Corruption Blocked . | . . . . Effects 2 | . 2 . . Message Errors 1 | . 1 . . Heat Flow Errors 1 | . 1 . . Overload Shots . | . . . . Overflow Damage 5 | . . . 5 Projectiles 5 | . . . 5 Explosions . | . . . . Melee . | . . . . Knockbacks 5 | . . . 5 Impact . | . . . . Kinetic 4 | . . . 4 Secondary 1 | . . . 1 Self-Inflicted Damage 53 | . . . 53 Shots 1 | . . . 1 Rammed . | . . . . Targets Rammed 3 | . . 2 1 Kicked 3 | . . 2 1 Crushed . | . . . . Highest Temperature 670 | 108 101 670 396 Average Temperature 137 | 62 14 210 95 Received Heat Transfer 2028 | 18 . 408 1602 Effects 13 | . . 13 . Shutdowns 1 | . . 1 . Energy Bleed 2 | . . 2 . Interference 1 | . . 1 . Matter Decay 1 | . . 1 . Short Circuit 1 | . . 1 . Damage (minor) 2 | . . 2 . Damage (core) 5 | . . 5 . Siege Activations . | . . . . Robots Corrupted . | . . . . Combat Hostiles . | . . . . Parts Fried . | . . . . Impact Corruptions . | . . . . Robots Melted . | . . . . Combat Hostiles . | . . . . Parts Melted 3 | . . 2 1 Heat Transferred 2814 | 148 407 666 1593 Parts Sabotaged . | . . . . Parts Stolen . | . . . . Parts Stripped . | . . . . Power Chain Reactions 1 | . . . 1 Alert | -11 -10 -9 -8 ------- Run | Yrd Mat Mat Mat Peak Influence 339 | 25 200 339 271 Initial 75 | . 16 . 75 Average 116 | 6 44 138 166 Maximum Alert Level 1 | . 1 1 1 Low Security (%) 84 | 100 92 90 69 Level 1 15 | . 7 9 30 Level 2 . | . . . . Level 3 . | . . . . Level 4 . | . . . . Level 5 . | . . . . High Security . | . . . . Max Security . | . . . . Squads Dispatched 5 | . . . 5 Investigation 1 | . . . 1 Extermination . | . . . . Reinforcement 4 | . . . 4 Assault . | . . . . Garrison . | . . . . Intercept . | . . . . Searches Triggered . | . . . . Construction Impeded 1 | . . . 1 Haulers Reinforced . | . . . . Active Scanning Responses . | . . . . Cargo Convoy Interrupts . | . . . . Stealth | -11 -10 -9 -8 --------- Run | Yrd Mat Mat Mat Distress Signals 3 | . 1 1 1 Communications Jammed . | . . . . Distress Signals . | . . . . Times Spotted 54 | 1 10 19 24 Peak Tracking Total 8 | 1 4 6 8 Tactical Retreats 4 | . . 1 3 Traps | -11 -10 -9 -8 ------- Run | Yrd Mat Mat Mat Traps Triggered 2 | . 1 . 1 Indirectly . | . . . . Trap Hack Attempts . | . . . . Triggered . | . . . . Disarmed . | . . . . Reprogrammed . | . . . . Reused . | . . . . Traps Extracted . | . . . . Installed . | . . . . Triggered . | . . . . Machines | -11 -10 -9 -8 ---------- Run | Yrd Mat Mat Mat Machines Disabled 1 | . . . 1 Max in Single Turn 1 | . . . 1 Machines Repaired . | . . . . Machines Dismantled . | . . . . Machines Sabotaged . | . . . . Overloaded Fab Kills . | . . . . Hacking | -11 -10 -9 -8 --------- Run | Yrd Mat Mat Mat Machines Accessed 5 | . 2 2 1 Terminals 1 | . . 1 . Fabricators . | . . . . Repair Stations 3 | . 1 1 1 Recycling Units 1 | . 1 . . Scanalyzers . | . . . . Garrison Access . | . . . . Total Hacks 13 | . 4 6 3 Successful 8 | . 3 3 2 Failed 5 | . 1 3 1 Catastrophic . | . . . . Database Lockouts . | . . . . Manual . | . . . . Terminals 1 | . . 1 . Fabricators . | . . . . Repair Stations 10 | . 2 5 3 Recycling Units 2 | . 2 . . Scanalyzers . | . . . . Garrison Access . | . . . . Terminal Hacks 1 | . . 1 . Record 1 | . . 1 . Fabricator Hacks . | . . . . Repair Station Hacks 6 | . 2 2 2 Scan Component 4 | . 2 1 1 Repair 2 | . . 1 1 Recycling Unit Hacks 1 | . 1 . . Process 1 | . 1 . . Scanalyzer . | . . . . Garrison Access Hacks . | . . . . Unauthorized Hacks . | . . . . Terminals . | . . . . Fabricators . | . . . . Repair Stations . | . . . . Recycling Units . | . . . . Scanalyzers . | . . . . Garrison Access . | . . . . Data Cores Recovered . | . . . . Used . | . . . . Hacking Detections 4 | . 1 2 1 Full Trace Events 2 | . . 1 1 Feedback Events . | . . . . Feedback Blocked . | . . . . Robot Schematics Acquired . | . . . . Robots Built . | . . . . Authchips . | . . . . Time . | . . . . Total Robot Build Rating . | . . . . Part Schematics Acquired . | . . . . Parts Built . | . . . . Authchips . | . . . . Time . | . . . . Total Part Build Rating . | . . . . Parts Repaired 2 | . . 1 1 Time 58 | . . 32 26 Parts Recycled . | . . . . Recycled Matter 120 | . 120 . . Retrieved Matter . | . . . . Retrieved Components . | . . . . Parts Scanalyzed . | . . . . Part Schematics Acquired . | . . . . Parts Damaged . | . . . . Bothacking | -11 -10 -9 -8 ------------ Run | Yrd Mat Mat Mat Used RIF Installer . | . . . . Robots Hacked . | . . . . Non-combat . | . . . . Combat . | . . . . Robot Hacks Applied . | . . . . Relay Couplers Released . | . . . . Fabnet Peak Effective % . | . . . . Robots Rewired . | . . . . Allies Hacked . | . . . . Hacks Repelled . | . . . . Allies | -11 -10 -9 -8 -------- Run | Yrd Mat Mat Mat Total Allies . | . . . . Largest Group . | . . . . Highest-Rated Group . | . . . . Highest-Rated Ally . | . . . . Total Orders . | . . . . Ally Attacks . | . . . . Total Damage . | . . . . Kills . | . . . . Allies Corrupted . | . . . . Allies Melted . | . . . . Intel | -11 -10 -9 -8 ------- Run | Yrd Mat Mat Mat Robot Analysis Total . | . . . . Derelict Logs Recovered . | . . . . Drone Launches . | . . . . Drone Recoveries . | . . . . Exploration | -11 -10 -9 -8 ------------- Run | Yrd Mat Mat Mat Turns Passed 1917 | 123 464 705 625 Spaces Moved 976 | 92 286 364 234 Core 22 | 17 . . 5 Treads 8 | . . 8 . Legs 946 | 75 286 356 229 Wheels . | . . . . Hover . | . . . . Flight . | . . . . Fastest Speed 50 | 50 120 120 120 Average Speed 125 | 107 120 122 145 Slowest Speed 650 | 120 120 190 650 Overloaded Moves . | . . . . Propulsion Burnouts . | . . . . Robots Hopped . | . . . . Cave-ins Triggered . | . . . . Exploration Rate (%) 19 | 7 34 21 14 Regions Visited 3 Branch Regions . Pre-discovered Areas . | . . . . Known Exits Taken . | . . . . Unknown Exits Taken 3 | 1 1 1 . Scrap Searched . | . . . . Spaces Dug . | . . . . Terrain Destroyed 5 | . . . 5 Melee . | . . . . Projectile 3 | . . . 3 AOE 2 | . . . 2 Terrain Rammed . | . . . . Walls Destroyed . | . . . . Machines Disabled . | . . . . Actions | -11 -10 -9 -8 --------- Run | Yrd Mat Mat Mat Total 1422 | 104 377 530 411 Wait 191 | . 65 55 71 Move 973 | 91 285 363 234 Hop . | . . . . Pick Up 35 | 2 4 15 14 Fast Attach 21 | 6 1 10 4 Attach 21 | . . 5 16 Detach 1 | . . 1 . Swap 22 | . 2 11 9 Drop 25 | . 3 18 4 Fire 130 | 5 17 50 58 Melee . | . . . . Ram . | . . . . Kick 3 | . . 2 1 Crush . | . . . . Escape Stasis . | . . . . Rewire . | . . . . Trap . | . . . . Miscellaneous . | . . . . Route ------- -11/Scrapyard -10/Materials -9/Materials -8/Materials History --------- Turn | Location | Event 2 | -11/Scrapyard | Met Revision 17 74 | -11/Scrapyard | Discovered new exit (range 8) 124 | -11/Scrapyard | Entered Materials 315 | -10/Materials | Build established: Mutant 532 | -10/Materials | Discovered new exit (range 5) 588 | -10/Materials | Entered another Materials area 588 | -9/Materials | Evolved 2 slots: Propulsion x1, Utility x1 966 | -9/Materials | Core integrity fell below 50% 972 | -9/Materials | Core integrity fell below 20% 1021 | -9/Materials | Build established: Scavenger-Mutant 1132 | -9/Materials | Discovered new exit (range 12) 1155 | -9/Materials | Repaired Hvy. Assault Rifle? 1293 | -9/Materials | Entered another Materials area 1293 | -8/Materials | Evolved 2 slots: Propulsion x1, Weapon x1 1470 | -8/Materials | Repaired Aluminum Leg 1554 | -8/Materials | Lost 4 parts (1p1n2u) 1824 | -8/Materials | Core integrity fell below 50% 1841 | -8/Materials | Core integrity fell below 20% 1918 | -8/Materials | Destroyed by G-47 Trooper with Particle Gun Last Messages --------------- 01863_ Arm. Treads destroyed. 01863_ G-47 Trooper knocked back. 01866_ Slug penetrates G-47 Trooper. 01866_ Destroyed Lgt. Nuclear Core. 01866_ G-47 Trooper knocked back. 01867_ Hvy. Assault Cannon destroyed. 01869_ Critical hit (Burn: +37). 01871_ Imp. Utility Shielding destroyed. 01875_ Aluminum Leg destroyed. 01877_ K-01 Serf collects debris. 01879_ Backup Power I destroyed. 01881_ K-01 Serf collects debris. 01883_ Aluminum Leg destroyed. 01888_ Acquired Aluminum Leg. 01891_ K-01 Serf collects debris. 01894_ R-06 Scavenger collects Corrupted Terrain Scanner. 01895_ Particle Gun destroyed. 01896_ Acquired 35 matter. 01916_ Shock Bomb Launcher destroyed. Map ----- +----------------------------------------------------+ | ?????????????????????????????????????????? | | ?????????????????????????????????????????? | | ?????????????????????????????????????????? | | ?????????????????????????????????????????? | | ?????????????????????????????????????????? | | ?????????????????????????????????????????? | | ?????????????????????????????????????????? | | ???????????????????????????????????????? ! | | ????????????????????????????????????##?? | | ???????????????????????????????????? ?? | | ???????????????????????????????????? #? | | ???????????????????????????????????? ?? | | ???????????????????????????????????? ?? | | ???????????????????????????????????? ?? | | ???????????????????????????????????? ?# | | ???????????????????????????????????#/#?# | | ????????????????????????????##?????# #?# | | ????????????#####?#####????#%#?????# #?# | | ????????????# ### !##############+### | | ????????????# ! =/%/!* ! *# | | ????????????# ### ######%/! !#! | | ????????????## #####g###???# % " * #%= | | ?????????????# #% #???# " %/ ! | | ?????????????# # #???# % "==%#%= | | ?????????????# # #???# =%#== | | ?????????????# # @o"T" #???# ! % # | | ????########## # #???# ## | | ????# """ # #+#######???############ | | ????# "R" #=! #??????????????##????# | | ????# " !#![ #????????????????????# | | ????# [=#% #???????????????????? | | ????# %/[ #????????????????????# | | ????# """ =#![ #????????????????????# | | ????# "" # [ #????????????????????# | | ????# "" = # #????????????????????# | | ????# # #????????????????????? | | ????########## #????????????????????? | | ??????# # #????????????????????? | | ??????#!! # #????????????????????? | | ??????#!! ! # #???????????????????????? | | ??????#!! + #???????????????????????? | | ??????# # #???????????????????????? | | ??????# = # #???????????????????????? | | ??????######## #???????????????????????? | | ?????????????#####???????????????????????? | | ?????????????????????????????????????????? | | ?????????????????????????????????????????? | | ?????????????????????????????????????????? | | ?????????????????????????????????????????? | | ?????????????????????????????????????????? | +----------------------------------------------------+ Best States ------------- Heat Dissipation 45 Energy Generation 16 Energy Capacity 290 Matter Stores 300 Matter Capacity 300 Sight Range 16 Robot Scan Range 14 Terrain Scan Density 10 Armor Coverage 150 Utility Shielding 66 Evasion (%) 55 Recoil Reduction 3 Item Schematics ----------------- None Robot Schematics ------------------ None Fabricated ------------ Nothing Alien Tech Used ----------------- None Achievements -------------- Close Call Part-time Mechanic Risk Taker Uninvited Guest Challenges ------------ None Game ------ Seed AntimissileWeaponsTelecube Manual? 0 Play Time 00:38:27 Cumulative 0.9 hours Start 2024.10.22 @ 12:14:29 End 2024.10.22 @ 22:35:10 Sessions 3 Manual Loads 0 Difficulty Rogue Special Mode None Game No. 2 Rogue 2 Adventurer 0 Explorer 0 Win Type - Total 0 Types 0/0/0/0/0/0/0/0/0 Lore% 0 Gallery% 3 Achievement% 2 Wizard Run 0 Options --------- Layout 1 ASCII 0 Keyboard 0 Movement Arrows Keybinds 0 Fullscreen 1 Font 24/Smallcaps Map View 50x35 Zoom Use 0% Tactical HUD 1 Map Filters NONE Filters NONE Steam 1 RUN: d1ff337a-aa15-469a-a942-c13e3c22d2ae